Cogmind - Beta 9.4 @@@ ROGUE MODE // 2020.02.16 @ 04:33:05 Player: Trione Result: Destroyed by S-27 Virus with Autogun Performance ------------- Evolutions (4) 2000 Regions Visited (22) 4400 Robots Destroyed (245) 1225 Value Destroyed (7474) 7474 Prototype IDs (47) 940 Alien Tech Used (0) 0 Bonus (5418) 5418 TOTAL SCORE: 21457 Bonus ------- High Alert Combat Kills 712 Follower Combat Kills 1716 Entered Garrisons 1000 Used RIF Installer 2500 Network Hubs Disabled 400 Aligned with FarCom 300 Built Enhanced Grunts 300 A7 Reached Mainframe 300 Met R17 at Cetus 500 Friendly Fire -2310 Cogmind --------- Core Integrity 0/850 Matter 97/300 Energy 100/100 System Corruption 2% Temperature Cool (0) Movement Core (50) Location -6/Garrison Parts ------- > --- POWER (1) -------- (None) > --- PROPULSION (3) --- (None) > --- UTILITY (9) ------ Advanced Weight Redist. System Inertial Stasis Machine Experimental Signal Interpreter Advanced Hacking Suite Advanced Hacking Suite Relay Coupler [Behemoth] (13) > --- WEAPON (2) ------- (None) > --- INVENTORY (4) ---- Large Storage Unit Superbattery (2000) Experimental Sensor Array Advanced Remote Datajack Peak State ------------ > --- POWER ------------ Quantum Reactor > --- PROPULSION ------- Centrium Heavy Treads Improved Cesium-ion Thruster > --- UTILITY ---------- Medium Storage Unit Large Storage Unit Experimental Signal Interpreter Centrium Medium Armor Plating Centrium Medium Armor Plating Advanced Hacking Suite Advanced Hacking Suite Advanced Hacking Suite Improved System Backup Module > --- WEAPON ----------- Improved KE Penetrator Improved KE Penetrator > --- INVENTORY -------- Quantum Reactor Quantum Reactor Experimental Cesium-ion Thruster Superbattery Advanced Weight Redist. System Experimental Sensor Array Improved Utility Shielding Relay Coupler [Behemoth] Advanced Variable Charge Gun Improved KE Penetrator Mini Smartbomb Launcher Advanced Remote Datajack Phasing Sabre Spear [Rating: 106] Favorites ----------- Power Micro Fission Core Engine Ion Engine Power Core Micro Fission Core Reactor Quantum Reactor Propulsion Armored Wheel Treads Centrium Heavy Treads Wheel Armored Wheel Hover Unit Aerolev Unit Flight Unit Improved Cesium-ion Thruster Utility Advanced Hacking Suite Device Advanced Weight Redist. System Storage High-capacity Storage Unit Processor Experimental Signal Interpreter Hackware Advanced Hacking Suite Protection Reactive Plating Weapon Scythe Energy Gun Advanced Variable Charge Gun Energy Cannon Light EM Pulse Cannon Ballistic Gun Improved KE Penetrator Launcher Mini Smartbomb Launcher Special Weapon Advanced Remote Datajack Slashing Weapon Scythe Piercing Weapon Spear Special Melee Weapon Improved Datajack Build | -11 -10 -10 -10 -9 -8 -8 -8 -8 -7 -7 -7 -7 -7 -7 -6 -6 -6 -6 -6 -6 -6 -6 ------- Run | Scr Mat Min Exi Min Mat Gar Mat Gar Fac Was Fac Gar Fac Gar Fac Was Fac Ext Cet Arc Hub Gar Slots Evolved 8 | . . . . . 4 . . . 2 . . . . . 2 . . . . . . . Power . | . . . . . . . . . . . . . . . . . . . . . . . Propulsion 1 | . . . . . . . . . 1 . . . . . . . . . . . . . Utility 7 | . . . . . 4 . . . 1 . . . . . 2 . . . . . . . Weapon . | . . . . . . . . . . . . . . . . . . . . . . . Parts Attached 372 | 7 23 9 1 5 27 4 16 15 51 2 8 7 5 11 42 . 49 42 20 10 7 11 Power 24 | 1 1 2 . 1 1 . . . 4 . . . . . 1 . 1 5 2 4 . 1 Engine 13 | 1 1 2 . 1 1 . . . 2 . . . . . . . . 4 . 1 . . Core 6 | . . . . . . . . . 2 . . . . . 1 . 1 1 . 1 . . Reactor 5 | . . . . . . . . . . . . . . . . . . . 2 2 . 1 Propulsion 48 | 2 4 . . 1 3 . 2 2 6 . 2 1 . . 11 . 5 3 3 1 1 1 Treads 4 | . 1 . . . . . . 1 . . . . . . . . . . 2 . . . Leg . | . . . . . . . . . . . . . . . . . . . . . . . Wheel 12 | 2 3 . . 1 1 . 2 1 2 . . . . . . . . . . . . . Hover 2 | . . . . . 2 . . . . . . . . . . . . . . . . . Flight 30 | . . . . . . . . . 4 . 2 1 . . 11 . 5 3 1 1 1 1 Utility 112 | 2 4 . 1 . 7 . 7 . 26 2 6 1 5 3 16 . 8 8 8 4 2 2 Device 42 | . . . . . . . 1 . 13 2 4 . 2 . 5 . 5 4 3 2 1 . Storage 31 | 2 4 . 1 . 3 . 4 . 5 . . . . . 6 . 1 1 3 1 . . Processor 2 | . . . . . . . . . 1 . . . . . 1 . . . . . . . Hackware 15 | . . . . . . . . . 3 . 2 . 3 2 3 . 1 . . 1 . . Protection 22 | . . . . . 4 . 2 . 4 . . 1 . 1 1 . 1 3 2 . 1 2 Artifact . | . . . . . . . . . . . . . . . . . . . . . . . Weapon 188 | 2 14 7 . 3 16 4 7 13 15 . . 5 . 8 14 . 35 26 7 1 4 7 Energy Gun 4 | 1 . . . . . . 1 . . . . . . . . . . . 2 . . . Energy Cannon 27 | . 7 2 . 2 6 1 2 4 3 . . . . . . . . . . . . . Ballistic Gun 21 | 1 5 4 . 1 3 . . 3 . . . . . . 1 . . . 3 . . . Ballistic Cannon . | . . . . . . . . . . . . . . . . . . . . . . . Launcher 37 | . . . . . 2 2 . 4 2 . . 4 . 4 1 . 1 10 2 . 2 3 Special Weapon 4 | . . . . . . . . . . . . . . . . . 1 3 . . . . Impact Weapon . | . . . . . . . . . . . . . . . . . . . . . . . Slashing Weapon 56 | . 2 1 . . 5 1 4 1 6 . . . . 2 5 . 20 5 . . . 4 Piercing Weapon 18 | . . . . . . . . . 2 . . 1 . 1 . . 6 5 . 1 2 . Special Melee Weapon 21 | . . . . . . . . 1 2 . . . . 1 7 . 7 3 . . . . Unidentified Prototypes 9 | . . . . . 2 . 1 . 1 . . . . . . . . . 5 . . . Parts Lost 33 | . 2 1 . 2 3 . 2 1 . . . 1 . 2 . . 3 5 2 . 2 7 Power 5 | . 1 . . . 1 . . . . . . . . . . . . 1 1 . . 1 Propulsion 9 | . . . . 1 . . . 1 . . . 1 . . . . 1 2 . . 1 2 Utility 9 | . . . . . 2 . 1 . . . . . . 2 . . 1 1 . . . 2 Weapon 10 | . 1 1 . 1 . . 1 . . . . . . . . . 1 1 1 . 1 2 Highest Loss Streak 3 | . 2 1 . 2 2 . 2 1 . . . 1 . 2 . . 2 3 2 . 2 3 Average Slot Usage (%) 93 | . 99 100 88 83 88 90 93 100 99 100 97 97 92 89 97 100 83 90 91 89 88 67 Engine 3 | . 13 14 14 14 8 9 9 9 3 . . . . . . . . 1 . . . . Core 3 | . . . . . . . . . 3 7 7 7 7 7 6 6 6 4 . . . . Wheel 7 | . 27 28 28 28 18 18 18 17 10 . . . . . . . . . . . . . Flight 11 | . . . . . . . . . 12 23 23 22 23 23 19 20 12 16 6 8 15 2 Device 8 | . . . . . . . . . 9 15 14 12 15 7 15 13 7 12 10 14 19 14 Storage 18 | . 28 28 17 14 29 27 40 45 22 7 7 7 7 7 7 13 13 11 12 11 6 6 Processor 4 | . . . . . . . . . 7 7 7 7 7 7 6 6 6 6 6 6 6 6 Hackware 15 | . . . . . . . . . 12 23 23 23 22 15 28 26 28 24 20 20 26 20 Protection 3 | . . . . . 14 18 8 9 . . . 2 . 6 . . . 1 8 4 . 3 Energy Cannon 2 | . 18 10 14 14 9 5 . 5 2 . . . . . . . . . . . . . Ballistic Gun 1 | . 4 9 . 8 2 . . 2 . . . . . . . . . . 7 9 . . Slashing Weapon 6 | . 4 8 14 3 5 11 17 7 7 7 7 7 7 3 5 6 2 3 . . . 4 Special Melee Weapon 1 | . . . . . . . . 1 2 7 4 . . 3 4 6 1 . . . . . Naked Turns . | . . . . . . . . . . . . . . . . . . . . . . . Heaviest Build 203 | 16 75 77 91 93 190 178 203 155 150 26 26 32 27 33 40 33 36 36 72 65 37 41 Greatest Support 89 | 26 26 24 24 24 24 24 24 24 36 26 29 32 30 32 40 36 40 39 89 80 40 40 Greatest Overweight (x) 15 | 1 3 3 3 3 15 7 8 6 4 1 1 . 2 1 3 . 11 2 2 1 . 1 Average Overweight (x) . | . 2 2 2 3 6 7 6 6 . . . . . . . . . . . . . . Largest Inventory Capacity 48 | 8 20 20 24 24 48 40 48 40 40 10 10 10 10 10 16 14 14 14 14 14 8 8 Average Capacity 20 | 6 17 20 22 24 41 40 43 40 23 10 10 10 10 10 10 14 14 12 13 12 8 7 Most Carried 42 | 6 20 20 24 24 40 40 42 40 40 10 10 10 10 10 14 14 14 14 14 14 8 8 Average Carried 19 | 2 16 19 21 23 37 40 38 39 23 10 9 9 9 9 10 13 13 11 12 12 8 6 Final Capacity 40 | 8 20 20 24 24 40 40 40 40 10 10 10 10 10 10 14 14 14 8 14 8 8 4 Final Carried 40 | 6 20 20 24 24 40 40 40 40 10 10 10 10 10 9 14 14 14 8 14 8 8 4 Class Distribution -------------------- 33% | Hauler-Mutant 33% | Hacker-Sprinter 22% | Hacker-Mutant 4% | Wizard-Mutant 3% | Mutant Dominant Class ---------------- Mutant | -10/Materials Hauler-Mutant | -10/Mines Hauler-Mutant | -10/Exiles Hauler-Mutant | -9/Mines Hauler-Mutant | -8/Materials Hauler-Mutant | -8/Garrison Hauler-Mutant | -8/Materials Hauler-Mutant | -8/Garrison Hauler-Mutant | -7/Factory Hacker-Mutant | -7/Waste Hacker-Sprinter | -7/Factory Hacker-Sprinter | -7/Garrison Hacker-Sprinter | -7/Factory Machinist-Sprinter | -7/Garrison Hacker-Sprinter | -6/Factory Hacker-Sprinter | -6/Waste Hacker-Mutant | -6/Factory Hacker-Mutant | -6/Extension Hacker-Mutant | -6/Cetus Hacker-Mutant | -6/Archives Hacker-Sprinter | -6/Hub_04(d) Hacker-Mutant | -6/Garrison Resources | -11 -10 -10 -10 -9 -8 -8 -8 -8 -7 -7 -7 -7 -7 -7 -6 -6 -6 -6 -6 -6 -6 -6 ----------- Run | Scr Mat Min Exi Min Mat Gar Mat Gar Fac Was Fac Gar Fac Gar Fac Was Fac Ext Cet Arc Hub Gar Matter Collected 6441 | 273 296 113 30 45 481 64 302 470 582 20 95 219 50 225 445 . 676 1268 361 172 164 90 Remotely . | . . . . . . . . . . . . . . . . . . . . . . . Salvage Created 10228 | 94 887 225 . 55 1083 76 710 517 1153 . 23 430 89 640 613 . 821 1277 244 194 736 361 Parts 466 | 3 36 19 . 5 62 3 37 21 55 . 2 21 1 28 25 . 29 45 20 9 36 9 Haulers Intercepted 19 | . 2 . . . 4 . 3 . 3 . . . . . 1 . 1 3 . . 2 . Recyclers Shooed 13 | . 3 1 . . 1 . 1 . 4 . . . 1 . . . 2 . . . . . Parts Field Recycled . | . . . . . . . . . . . . . . . . . . . . . . . Retrieved Matter . | . . . . . . . . . . . . . . . . . . . . . . . Parts Self-Destructed . | . . . . . . . . . . . . . . . . . . . . . . . Prevented . | . . . . . . . . . . . . . . . . . . . . . . . Kills | -11 -10 -10 -10 -9 -8 -8 -8 -8 -7 -7 -7 -7 -7 -7 -6 -6 -6 -6 -6 -6 -6 -6 ------- Run | Scr Mat Min Exi Min Mat Gar Mat Gar Fac Was Fac Gar Fac Gar Fac Was Fac Ext Cet Arc Hub Gar Combat Hostiles Destroyed 148 | . 11 5 . 3 20 6 6 15 10 . . 10 . 16 . . 3 14 6 2 8 13 Melee 19 | . . . . . 1 . 5 . 2 . . 3 . . . . . 4 . . . 4 Guns 12 | . 5 3 . . . . . 2 . . . . . . . . . . . 2 . . Cannons 18 | . 5 2 . 3 6 . 1 . 1 . . . . . . . . . . . . . AOE 89 | . . . . . 11 5 . 13 6 . . 7 . 13 . . 3 10 6 . 6 9 Classes Destroyed 15 | 1 6 1 . . 2 . 3 . 1 . . . . . . . . . . . 1 . Worker 13 | . 1 . . . 4 . 1 . 3 . . . 1 . 1 . 1 . . . 1 . Builder 2 | . 1 . . . . . . . . . . . . . . . 1 . . . . . Tunneler 3 | . . 1 . . . . . . . . . . . . . . 1 . . . 1 . Hauler 19 | . 2 . . . 4 . 3 . 3 . . . . . 1 . 1 3 . . 2 . Recycler 30 | 1 4 1 . . 2 . 3 . 7 . . . 1 . 3 . 5 3 . . . . Operator 7 | . . . . . 1 . . . 1 . . . . . . . 1 1 . 2 1 . Watcher 18 | . 3 . . . 2 . 2 . 1 . 1 . . . 3 . . 3 1 . 2 . Swarmer 55 | . 6 3 . 3 7 4 . 7 3 . . . . 7 . . 3 . 6 . 3 3 Grunt 62 | . 5 2 . . 7 2 2 8 4 . . 7 . 6 . . . 8 . . 4 7 Brawler 4 | . . . . . . . 1 . . . . . . 3 . . . . . . . . Duelist 2 | . . . . . . . 1 . 1 . . . . . . . . . . . . . Sentry 16 | . . . . . 6 . 1 . . . . 2 . . . . . 3 . 2 1 1 Hunter 4 | . . . . . . . 1 . . . . 1 . . . . . . . . . 2 Programmer 4 | . . . . . . . . . 2 . . . . . . . . 2 . . . . Behemoth 1 | . . . . . . . . . . . . . . . . . . . . . 1 . Enhanced Grunt 2 | . . . . . . . . . . . . . . . . . . . 1 . 1 . Butcher 1 | . . . . . . . . . . . . . . . . . . 1 . . . . Guerrilla 1 | . . . . . . . . . . . . . . . . . . 1 . . . . Best Kill Streak 13 | 1 4 3 . 3 7 4 3 8 6 . 1 5 1 13 1 . 5 4 6 2 5 8 Combat Bots Only 13 | . 4 3 . 3 5 4 2 8 4 . . 5 . 13 . . 3 3 6 2 3 8 Max Kills in Single Turn 5 | 1 1 1 . 1 2 2 1 3 5 . 1 2 1 2 1 . 2 2 4 1 2 2 Gunslinging . | . . . . . . . . . . . . . . . . . . . . . . . Exploded 4 | . . . . . 2 2 . 3 4 . . 2 . 2 . . 1 2 4 . 2 2 Melee 1 | . . . . . 1 . 1 . 1 . . 1 . . . . . 1 . . . 1 Uniques/NPCs Destroyed 1 | . . . . . . . . . . . . . . . . . . . 1 . . . A7 (-6/Cetus) Combat | -11 -10 -10 -10 -9 -8 -8 -8 -8 -7 -7 -7 -7 -7 -7 -6 -6 -6 -6 -6 -6 -6 -6 -------- Run | Scr Mat Min Exi Min Mat Gar Mat Gar Fac Was Fac Gar Fac Gar Fac Was Fac Ext Cet Arc Hub Gar Damage Taken 6956 | . 691 188 . 105 928 138 393 442 489 . 50 138 38 247 216 . 267 843 316 26 146 1295 Core 1506 | . 176 48 . 7 104 34 73 44 131 . . 6 14 18 62 . 66 259 80 . 38 346 Absorbed by Shields 462 | . . . . . . . . . . . . 20 . 30 . . . 186 137 . . 89 Core Remaining (%) 58 | 100 . . . 7 . . . 53 . . . . . 75 . . . . . . . . Volleys Fired 360 | 3 61 10 . 7 57 14 6 48 23 . . 11 . 22 5 . 3 51 14 9 5 11 Largest 2 | 2 2 2 . 2 2 1 2 2 1 . . 1 . 1 1 . 1 1 2 2 1 1 Hottest 275 | 70 136 112 . 112 126 63 126 126 69 . . 39 . 39 30 . 43 80 275 70 80 80 Shots Fired 452 | 6 97 20 . 10 72 14 8 55 23 . . 11 . 22 5 . 3 49 23 18 5 11 Gun 123 | 6 38 14 . . 3 . . 21 . . . . . . 5 . . . 18 18 . . Cannon 181 | . 59 6 . 10 52 7 8 18 21 . . . . . . . . . . . . . Launcher 133 | . . . . . 17 7 . 16 2 . . 11 . 22 . . 3 34 5 . 5 11 Special 15 | . . . . . . . . . . . . . . . . . . 15 . . . . Kinetic 119 | 3 38 14 . . 3 . . 21 . . . . . . 5 . . . 17 18 . . Thermal 14 | 3 10 . . . . . . . . . . . . . . . . . 1 . . . Explosive 109 | . . . . . 17 7 . 16 1 . . 11 . 5 . . 3 31 2 . 5 11 Electromagnetic 195 | . 49 6 . 10 52 7 8 18 22 . . . . 17 . . . 3 3 . . . Robot Hit Streak 26 | 3 8 9 . 3 23 26 5 12 17 . . 8 . 8 4 . . 20 9 4 . 9 Robot Miss Streak 5 | 1 5 3 . 3 1 2 2 4 1 . . . . 4 1 . . 1 3 2 . . Penetration Max 1 | . . . . . . . . . . . . . . . . . . . 1 1 . . Secondary Targets 1 | . . 1 . . . . . . . . . . . . . . . . . . . . Max Gunslinging Chain 1 | . . 1 . . . . . . . . . . . . . . . . . . . . Shots Hit Robots 423 | 4 60 16 . 4 59 5 33 29 41 . 2 8 4 9 22 . 12 60 14 17 8 16 Core Hits 361 | 2 23 9 . 3 38 7 16 36 29 . 1 17 2 27 9 . 13 56 14 6 28 25 Critical Hits 12 | . . . . . 1 . . . 1 . . 1 . . 3 . . 1 1 4 . . Critical Kills 8 | . . . . . 1 . . . 1 . . . . . 3 . . 1 1 1 . . Critical Parts Destroyed 3 | . . . . . . . . . . . . 1 . . . . . . . 2 . . Melee Attacks 855 | . 18 3 . 8 40 2 102 . 155 . 65 11 36 1 198 . 88 62 5 6 35 20 Impact . | . . . . . . . . . . . . . . . . . . . . . . . Slashing 742 | . 18 3 . 8 40 2 102 . 150 . 64 2 35 1 191 . 71 35 . . . 20 Piercing 105 | . . . . . . . . . 5 . . 9 1 . . . 17 27 5 6 35 . Sneak Attacks 77 | . 3 3 . . 3 . 11 . 11 . 1 2 2 . 12 . 11 11 . 4 3 . Combat Hostiles 3 | . . . . . . . . . . . . 2 . . . . . 1 . . . . Follow-up Attacks 8 | . . . . . . . 5 . . . . 1 . . . . . 2 . . . . Damage Inflicted 29643 | 46 1458 362 . 93 2818 589 1952 2243 2807 . 39 1103 242 1538 800 . 1764 5160 1198 779 2527 2125 Guns 1302 | 46 205 110 . . . . . 167 . . . . . . 88 . . . 339 347 . . Cannons 3370 | . 968 114 . 93 1030 129 166 360 510 . . . . . . . . . . . . . Explosions 15194 | . 70 . . . 1295 460 85 1716 820 . . 744 . 1538 . . 716 3224 717 . 2058 1751 Melee 9775 | . 215 138 . . 493 . 1701 . 1477 . 39 359 242 . 712 . 1048 1936 142 432 469 372 Ramming 2 | . . . . . . . . . . . . . . . . . . . . . . 2 Kinetic 1265 | 9 205 110 . . . . . 167 . . . . . . 88 . . . 339 347 . . Thermal 907 | 37 192 . . . 125 . 85 148 . . . . . 81 . . 239 . . . . . Explosive 12042 | . . . . . 1170 460 . 1568 788 . . 744 . 527 . . 477 3103 619 . 835 1751 Electromagnetic 5652 | . 846 114 . 93 1030 129 166 360 542 . . . . 930 . . . 121 98 . 1223 . Impact . | . . . . . . . . . . . . . . . . . . . . . . . Slashing 6751 | . 215 138 . . 493 . 1701 . 1477 . 39 30 162 . 712 . 298 1114 . . . 372 Piercing 3024 | . . . . . . . . . . . . 329 80 . . . 750 822 142 432 469 . Highest Corruption 13 | . . . . . 2 2 4 4 4 4 1 1 1 1 1 6 13 11 7 3 2 2 Average Corruption 4 | . . . . . 2 2 3 4 3 3 1 1 1 1 1 3 11 7 5 1 2 2 Corruption Purged 19 | . . . . . . . . . . 4 . . . . . . 2 6 3 4 . . Effects 377 | . . . . . 24 3 40 27 30 11 6 3 1 . 2 . 150 62 15 1 . 2 Message Errors 100 | . . . . . 11 1 13 6 5 3 3 . . . . . 35 16 5 1 . 1 Matter Fused 61 | . . . . . . . 10 6 8 1 . . . . . . 20 12 4 . . . Heat Flow Errors 28 | . . . . . 1 . 4 2 4 3 . . . . . . 9 4 1 . . . Energy Discharges 43 | . . . . . 5 . 4 6 5 2 . 1 1 . . . 12 5 2 . . . Data Loss (minor) 48 | . . . . . 3 1 8 1 4 2 2 1 . . 2 . 10 12 2 . . . Data Loss (major) 11 | . . . . . . . . . . . . . . . . . 7 4 . . . . Alerts 4 | . . . . . . . . . . . . . . . . . 3 1 . . . . Misdirections 45 | . . . . . . . . . . . . . . . . . 45 . . . . . Targeting Errors 35 | . . . . . 4 1 1 6 4 . 1 1 . . . . 9 6 1 . . 1 Weapon Failures 2 | . . . . . . . . . . . . . . . . . . 2 . . . . Overload Shots 1 | . . . . . . . . . . . . . . . . . . . 1 . . . Overflow Damage 2114 | . 70 . . . 182 16 299 39 297 . . 21 77 53 90 . 190 504 21 110 62 83 Projectiles 50 | . 35 . . . . . . . 15 . . . . . . . . . . . . . Explosions 548 | . . . . . 13 16 . 39 52 . . 21 . 53 . . 91 138 21 . 62 42 Melee 1516 | . 35 . . . 169 . 299 . 230 . . . 77 . 90 . 99 366 . 110 . 41 Knockbacks . | . . . . . . . . . . . . . . . . . . . . . . . Impact . | . . . . . . . . . . . . . . . . . . . . . . . Kinetic . | . . . . . . . . . . . . . . . . . . . . . . . Secondary . | . . . . . . . . . . . . . . . . . . . . . . . Self-Inflicted Damage 359 | . . . . . 207 . . 35 . . . 40 . 5 . . . . 5 . . 67 Shots 11 | . . . . . 5 . . 1 . . . 1 . 1 . . . . 2 . . 1 Rammed 1 | . . . . . . . . . . . . . . . . . . . . . . 1 Targets Rammed 1 | . . . . . . . . . . . . . . . . . . . . . . 1 Kicked . | . . . . . . . . . . . . . . . . . . . . . . . Crushed . | . . . . . . . . . . . . . . . . . . . . . . . Highest Temperature 274 | 70 225 171 . 185 235 274 252 262 268 268 . 9 . 128 19 . 263 229 207 . 104 132 Average Temperature 73 | 33 72 88 . 103 62 95 96 65 79 104 . 5 . 45 8 . 110 62 92 . 42 48 Received Heat Transfer 1579 | . 192 18 . . 261 72 81 207 138 . 18 54 24 108 45 . 48 203 22 . 27 61 Effects 4 | . . . . . . 1 1 . 1 . . . . . . . . . 1 . . . Energy Bleed 4 | . . . . . . 1 1 . 1 . . . . . . . . . 1 . . . Siege Activations . | . . . . . . . . . . . . . . . . . . . . . . . Robots Corrupted 17 | . 1 . . . 4 1 . 2 1 . . . . 3 . . . . . . 5 . Combat Hostiles 10 | . 1 . . . 2 1 . . 1 . . . . 3 . . . . . . 2 . Parts Fried 32 | . 5 1 . 1 9 . 1 2 2 . . . . 4 . . . . . . 7 . Impact Corruptions . | . . . . . . . . . . . . . . . . . . . . . . . Robots Melted . | . . . . . . . . . . . . . . . . . . . . . . . Combat Hostiles . | . . . . . . . . . . . . . . . . . . . . . . . Parts Melted 1 | . 1 . . . . . . . . . . . . . . . . . . . . . Heat Transferred 1033 | 111 272 . . . 100 . 100 150 . . . . . 100 . . 200 . . . . . Parts Sabotaged . | . . . . . . . . . . . . . . . . . . . . . . . Parts Stolen . | . . . . . . . . . . . . . . . . . . . . . . . Parts Stripped . | . . . . . . . . . . . . . . . . . . . . . . . Power Chain Reactions 11 | . 2 . . . 3 . 1 2 . . . . . 3 . . . . . . . . Missiles Intercepted . | . . . . . . . . . . . . . . . . . . . . . . . Alert | -11 -10 -10 -10 -9 -8 -8 -8 -8 -7 -7 -7 -7 -7 -7 -6 -6 -6 -6 -6 -6 -6 -6 ------- Run | Scr Mat Min Exi Min Mat Gar Mat Gar Fac Was Fac Gar Fac Gar Fac Was Fac Ext Cet Arc Hub Gar Peak Influence 1306 | 5 217 130 . 60 475 540 305 398 336 68 407 598 610 468 338 40 434 862 684 268 1306 1143 Average Influence 173 | 1 64 104 . 42 158 417 130 206 153 31 157 417 313 329 74 25 228 234 344 147 557 1023 Maximum Alert Level 4 | . 1 . . . 2 2 1 1 1 . 2 2 2 2 1 . 2 3 2 1 4 4 Low Security (%) 67 | 100 93 100 . 100 67 . 72 63 74 100 64 3 42 23 85 100 49 49 24 98 9 . Level 1 22 | . 6 . . . 23 38 27 36 25 . 28 39 22 18 14 . 36 26 40 1 41 . Level 2 8 | . . . . . 8 61 . . . . 7 56 34 57 . . 14 17 34 . 16 . Level 3 1 | . . . . . . . . . . . . . . . . . . 6 . . 25 79 Level 4 . | . . . . . . . . . . . . . . . . . . . . . 7 20 Level 5 . | . . . . . . . . . . . . . . . . . . . . . . . High Security . | . . . . . . . . . . . . . . . . . . . . . . . Max Security . | . . . . . . . . . . . . . . . . . . . . . . . Squads Dispatched 54 | . 2 . . . 6 . 1 . 9 . 7 . 3 . 9 . 9 4 . . 4 . Investigation 22 | . 1 . . . 2 . 1 . 1 . 5 . 2 . 6 . 4 . . . . . Extermination 12 | . . . . . . . . . 5 . 1 . . . 2 . 4 . . . . . Reinforcement 14 | . 1 . . . 1 . . . 3 . 1 . 1 . 1 . 1 4 . . 1 . Assault . | . . . . . . . . . . . . . . . . . . . . . . . Garrison 6 | . . . . . 3 . . . . . . . . . . . . . . . 3 . Intercept . | . . . . . . . . . . . . . . . . . . . . . . . Construction Impeded 3 | . . . . . 1 . . . . . . . . . . . . 2 . . . . Haulers Reinforced 3 | . . . . . . . . . 2 . . . . . . . . . . . 1 . Stealth | -11 -10 -10 -10 -9 -8 -8 -8 -8 -7 -7 -7 -7 -7 -7 -6 -6 -6 -6 -6 -6 -6 -6 --------- Run | Scr Mat Min Exi Min Mat Gar Mat Gar Fac Was Fac Gar Fac Gar Fac Was Fac Ext Cet Arc Hub Gar Distress Signals 12 | . 1 . . . 1 . . . . . . . . . 1 . 3 1 2 . 3 . Communications Jammed . | . . . . . . . . . . . . . . . . . . . . . . . Distress Signals . | . . . . . . . . . . . . . . . . . . . . . . . Times Spotted 344 | . 22 5 . 4 35 4 11 18 39 . 13 7 12 18 36 5 24 28 19 6 18 20 Peak Tracking Total 8 | . 6 3 . 3 4 3 3 6 7 . 2 5 5 6 4 5 6 5 8 1 7 8 Tactical Retreats 58 | . 2 . . 1 2 . 2 4 5 . 3 . 2 3 13 . 10 4 . . 4 3 Traps | -11 -10 -10 -10 -9 -8 -8 -8 -8 -7 -7 -7 -7 -7 -7 -6 -6 -6 -6 -6 -6 -6 -6 ------- Run | Scr Mat Min Exi Min Mat Gar Mat Gar Fac Was Fac Gar Fac Gar Fac Was Fac Ext Cet Arc Hub Gar Traps Triggered 26 | . 2 . . . 3 . 1 . 3 . . . . 3 3 . 4 5 . . . 2 Indirectly 2 | . . . . . . . . . . . . . . 2 . . . . . . . . Trap Hack Attempts 94 | . . . . . . . . 78 . . . . . 12 4 . . . . . . . Triggered . | . . . . . . . . . . . . . . . . . . . . . . . Disarmed . | . . . . . . . . . . . . . . . . . . . . . . . Reprogrammed 20 | . . . . . . . . 10 . . . . 6 1 3 . . . . . . . Reused 3 | . . . . . . . . 3 . . . . . . . . . . . . . . Traps Extracted . | . . . . . . . . . . . . . . . . . . . . . . . Installed . | . . . . . . . . . . . . . . . . . . . . . . . Triggered 3 | . . . . . . . . 3 . . . . . . . . . . . . . . Machines | -11 -10 -10 -10 -9 -8 -8 -8 -8 -7 -7 -7 -7 -7 -7 -6 -6 -6 -6 -6 -6 -6 -6 ---------- Run | Scr Mat Min Exi Min Mat Gar Mat Gar Fac Was Fac Gar Fac Gar Fac Was Fac Ext Cet Arc Hub Gar Machines Disabled 57 | . . . . . 3 1 . . 9 . 1 4 . 1 1 . 8 6 2 3 17 1 Max in Single Turn 7 | . . . . . 1 1 . . 7 . 1 2 . 1 1 . 4 2 2 1 7 1 Garrison Access 6 | . . . . . . . . . . . 1 . 1 . 3 . 1 . . . . . Garrison Relay 2 | . . . . . . . . . . . . 1 . 1 . . . . . . . . Network Hub 2 | . . . . . . . . . . . . . . . . . . . . . 2 . Machines Sabotaged . | . . . . . . . . . . . . . . . . . . . . . . . Garrisons Compromised . | . . . . . . . . . . . . . . . . . . . . . . . Overloaded Fab Kills . | . . . . . . . . . . . . . . . . . . . . . . . Fab Network Shutdowns 3 | . . . . . . . . . . . 1 . 1 . . . 1 . . . . . Hacking | -11 -10 -10 -10 -9 -8 -8 -8 -8 -7 -7 -7 -7 -7 -7 -6 -6 -6 -6 -6 -6 -6 -6 --------- Run | Scr Mat Min Exi Min Mat Gar Mat Gar Fac Was Fac Gar Fac Gar Fac Was Fac Ext Cet Arc Hub Gar Machines Accessed 139 | . 5 . 1 . 11 . 11 . 15 . 16 . 18 . 28 . 22 4 2 . 6 . Terminals 96 | . 4 . . . 8 . 7 . 13 . 11 . 14 . 16 . 13 3 2 . 5 . Fabricators 10 | . . . . . . . . . 1 . 1 . 1 . 4 . 3 . . . . . Repair Stations 7 | . . . . . . . 2 . 1 . . . . . 1 . 3 . . . . . Recycling Units 7 | . 1 . . . . . . . . . 1 . 1 . 2 . 1 1 . . . . Scanalyzers 6 | . . . . . 2 . 1 . . . 1 . . . 2 . . . . . . . Garrison Access 12 | . . . . . 1 . 1 . . . 2 . 2 . 3 . 2 . . . 1 . Total Hacks 403 | . 15 . 1 . 38 . 27 . 33 . 39 . 50 . 81 . 74 15 6 . 24 . Successful 299 | . 8 . 1 . 25 . 19 . 17 . 27 . 42 . 67 . 58 9 5 . 21 . Failed 102 | . 7 . . . 13 . 8 . 16 . 11 . 8 . 13 . 16 6 1 . 3 . Catastrophic 10 | . 2 . . . 1 . 2 . 2 . 1 . 1 . 1 . . . . . . . Database Lockouts 2 | . . . . . . . . . . . 1 . . . 1 . . . . . . . Manual 254 | . 12 . 1 . 29 . 18 . 26 . 21 . 23 . 44 . 40 10 7 . 23 . Terminals 299 | . 12 . . . 29 . 18 . 29 . 29 . 42 . 52 . 48 12 6 . 22 . Fabricators 37 | . . . . . . . . . 2 . 4 . 4 . 19 . 8 . . . . . Repair Stations 20 | . . . . . . . 4 . 2 . . . . . 1 . 13 . . . . . Recycling Units 15 | . 3 . . . . . . . . . 2 . 2 . 3 . 2 3 . . . . Scanalyzers 16 | . . . . . 7 . 4 . . . 2 . . . 3 . . . . . . . Garrison Access 15 | . . . . . 2 . 1 . . . 2 . 2 . 3 . 3 . . . 2 . Terminal Hacks 114 | . 3 . 1 . 7 . 3 . 6 . 8 . 23 . 23 . 23 3 4 . 10 . Record 2 | . . . . . . . . . . . . . . . 2 . . . . . . . Part Schematic 20 | . . . . . 2 . . . 1 . 2 . 6 . 5 . 4 . . . . . Robot Schematic 1 | . . . . . . . . . . . . . . . . . 1 . . . . . Prototype ID Bank 3 | . . . . . . . . . . . . . 1 . . . 2 . . . . . Open Door 3 | . . . . . . . . . . . . . . . . . 1 2 . . . . Branch Access Points 1 | . . . . . . . . . . . . . . . 1 . . . . . . . Machine Index 2 | . . . . . . . . . . . . . 1 . . . . . . . 1 . Terminal Index 11 | . 1 . . . 2 . 1 . 1 . 1 . 1 . 1 . 1 1 . . 1 . Fabricator Index 3 | . . . . . . . . . . . 1 . 1 . . . 1 . . . . . Repair Station Index 1 | . . . . . . . . . . . . . . . . . . . . . 1 . Scanalyzer Index 3 | . . . . . . . . . . . 1 . 1 . . . . . . . 1 . Garrison Index 1 | . . . . . . . . . . . . . 1 . . . . . . . . . Unreport Threat 14 | . . . . . . . . . 1 . . . 4 . 1 . 3 . 4 . 1 . Locate Traps 1 | . . . . . . . . . . . . . . . 1 . . . . . . . Reprogram Traps 1 | . . . . . . . . . . . . . 1 . . . . . . . . . Recall Investigation 3 | . . . . . . . . . . . . . 1 . 2 . . . . . . . Recall Extermination 8 | . . . . . . . . . 2 . 1 . . . 2 . 3 . . . . . Recall Reinforcements 1 | . . . . . . . . . . . . . . . . . . . . . 1 . Hauler Manifests 4 | . . . . . . . . . 1 . . . 1 . 1 . 1 . . . . . Registered Prototypes 2 | . . . . . . . . . . . . . 1 . 1 . . . . . . . Zone Layout 28 | . 2 . . . 3 . 2 . . . 2 . 3 . 6 . 6 . . . 4 . EX-Prototype ID Bank 1 | . . . 1 . . . . . . . . . . . . . . . . . . . Fabricator Hacks 30 | . . . . . . . . . 2 . 3 . 4 . 15 . 6 . . . . . Load Schematic 13 | . . . . . . . . . 1 . 1 . 1 . 7 . 3 . . . . . Build 17 | . . . . . . . . . 1 . 2 . 3 . 8 . 3 . . . . . Repair Station Hacks 16 | . . . . . . . 4 . 1 . . . . . . . 11 . . . . . Scan Component 10 | . . . . . . . 2 . 1 . . . . . . . 7 . . . . . Repair 6 | . . . . . . . 2 . . . . . . . . . 4 . . . . . Recycling Unit Hacks 7 | . . . . . . . . . . . 2 . 1 . 2 . 1 1 . . . . Process 1 | . . . . . . . . . . . 1 . . . . . . . . . . . Retrieve Components 6 | . . . . . . . . . . . 1 . 1 . 2 . 1 1 . . . . Scanalyzer 14 | . . . . . 5 . 4 . . . 2 . . . 3 . . . . . . . Insert Component 8 | . . . . . 3 . 2 . . . 1 . . . 2 . . . . . . . Analyze 6 | . . . . . 2 . 2 . . . 1 . . . 1 . . . . . . . Garrison Access Hacks 12 | . . . . . 1 . 1 . . . 2 . 2 . 3 . 2 . . . 1 . Unlock Access 5 | . . . . . 1 . 1 . . . 1 . 1 . . . . . . . 1 . Seal Access 6 | . . . . . . . . . . . 1 . 1 . 3 . 1 . . . . . Coupler Status 1 | . . . . . . . . . . . . . . . . . 1 . . . . . Unauthorized Hacks 238 | . 11 . . . 28 . 19 . 25 . 21 . 25 . 45 . 31 11 2 . 20 . Terminals 100 | . 5 . . . 12 . 7 . 8 . 10 . 12 . 18 . 13 5 1 . 9 . Track 33 | . 4 . . . 5 . 2 . 1 . 1 . 5 . 7 . 3 1 1 . 3 . Assimilate 24 | . . . . . 2 . 2 . 3 . 5 . 3 . 4 . 3 1 . . 1 . Botnet 30 | . 1 . . . 4 . 3 . 3 . 3 . 3 . 5 . 5 1 . . 2 . Detonate 2 | . . . . . . . . . . . . . . . . . . . . . 2 . Disrupt 3 | . . . . . . . . . . . . . . . . . 1 1 . . 1 . Operators 8 | . . . . . 1 . . . 1 . 1 . 1 . 2 . 1 1 . . . . Fabricators 4 | . . . . . . . . . . . . . . . 3 . 1 . . . . . Report 3 | . . . . . . . . . . . . . . . 3 . . . . . . . Haulers 1 | . . . . . . . . . . . . . . . . . 1 . . . . . Repair Stations . | . . . . . . . . . . . . . . . . . . . . . . . Recycling Units . | . . . . . . . . . . . . . . . . . . . . . . . Scanalyzers . | . . . . . . . . . . . . . . . . . . . . . . . Garrison Access 2 | . . . . . . . . . . . . . . . . . 1 . . . 1 . Reprogram 1 | . . . . . . . . . . . . . . . . . . . . . 1 . Eject 1 | . . . . . . . . . . . . . . . . . 1 . . . . . Data Cores Recovered . | . . . . . . . . . . . . . . . . . . . . . . . Used . | . . . . . . . . . . . . . . . . . . . . . . . Hacking Detections 103 | . 5 . . . 10 . 7 . 13 . 12 . 13 . 17 . 16 3 1 . 6 . Full Trace Events 15 | . . . . . . . 1 . 1 . 4 . 2 . 4 . 3 . . . . . Feedback Events 3 | . . . . . . . . . . . 1 . . . . . 2 . . . . . Corruption 3 | . . . . . . . . . . . 1 . . . . . 2 . . . . . Feedback Blocked . | . . . . . . . . . . . . . . . . . . . . . . . Robot Schematics Acquired 1 | . . . . . . . . . . . . . . . . . 1 . . . . . Robots Built 1 | . . . . . . . . . . . . . . . . . 1 . . . . . Matter 219 | . . . . . . . . . . . . . . . . . 219 . . . . . Time 58 | . . . . . . . . . . . . . . . . . 58 . . . . . Total Robot Build Rating 3 | . . . . . . . . . . . . . . . . . 3 . . . . . Part Schematics Acquired 26 | . . . . . 4 . 2 . 1 . 3 . 6 . 6 . 4 . . . . . Parts Built 14 | . . . . . . . . . 2 . 2 . 3 . 6 . 1 . . . . . Matter 2971 | . . . . . . . . . 212 . 504 . 636 . 1301 . 318 . . . . . Time 1025 | . . . . . . . . . 106 . 88 . 159 . 588 . 84 . . . . . Total Part Build Rating 79 | . . . . . . . . . 12 . 8 . 18 . 35 . 6 . . . . . Parts Repaired 6 | . . . . . . . 2 . . . . . . . . . 4 . . . . . Time 280 | . . . . . . . 54 . . . . . . . . . 226 . . . . . Parts Recycled . | . . . . . . . . . . . . . . . . . . . . . . . Recycled Matter 18 | . . . . . . . . . . . 18 . . . . . . . . . . . Retrieved Matter . | . . . . . . . . . . . . . . . . . . . . . . . Retrieved Components 14 | . . . . . . . . . . . . . 2 . 9 . 2 1 . . . . Parts Scanalyzed 6 | . . . . . 2 . 2 . . . 1 . . . 1 . . . . . . . Part Schematics Acquired 6 | . . . . . 2 . 2 . . . 1 . . . 1 . . . . . . . Parts Damaged . | . . . . . . . . . . . . . . . . . . . . . . . Bothacking | -11 -10 -10 -10 -9 -8 -8 -8 -8 -7 -7 -7 -7 -7 -7 -6 -6 -6 -6 -6 -6 -6 -6 ------------ Run | Scr Mat Min Exi Min Mat Gar Mat Gar Fac Was Fac Gar Fac Gar Fac Was Fac Ext Cet Arc Hub Gar Used RIF Installer 5 | . . . . . . 1 . 1 . . . 1 . 1 . . . . . . . 1 Coupler Efficiency 1 | . . . . . . . . . . . . . . . . . . . . . . 1 Structural Interface 1 | . . . . . . . . . . . . 1 . . . . . . . . . . Program Shield 1 | . . . . . . . . 1 . . . . . . . . . . . . . . Autooverride 1 | . . . . . . . . . . . . . . 1 . . . . . . . . Robots Hacked 8 | . . . . . . . . . . . 1 . . . 6 . . . . . 1 . Non-combat 7 | . . . . . . . . . . . 1 . . . 6 . . . . . . . Combat 1 | . . . . . . . . . . . . . . . . . . . . . 1 . Autooverrided 1 | . . . . . . . . . . . . . . . . . . . . . 1 . Robot Hacks Applied 8 | . . . . . . . . . . . 1 . . . 7 . . . . . . . parse_system 1 | . . . . . . . . . . . . . . . 1 . . . . . . . find_chute 2 | . . . . . . . . . . . . . . . 2 . . . . . . . ignore_repairs 1 | . . . . . . . . . . . 1 . . . . . . . . . . . find_fabricator 1 | . . . . . . . . . . . . . . . 1 . . . . . . . drop_inventory 3 | . . . . . . . . . . . . . . . 3 . . . . . . . Relay Couplers Released 10 | . . . . . . . . . . . . 4 . 3 . . 3 . . . . . Ejected 3 | . . . . . . . . . . . . . . . . . 3 . . . . . Machine Destruction 7 | . . . . . . . . . . . . 4 . 3 . . . . . . . . Attached 3 | . . . . . . . . . . . . . . 2 . . . . . 1 . . Robots Rewired 11 | . . . . . . . . . . . . . . . . . . 11 . . . . Allies Hacked 2 | . . . . . . . . . . . . . . . . . 1 1 . . . . Hacks Repelled 1 | . . . . . . . . . . . . . . . . . 1 . . . . . Allies | -11 -10 -10 -10 -9 -8 -8 -8 -8 -7 -7 -7 -7 -7 -7 -6 -6 -6 -6 -6 -6 -6 -6 -------- Run | Scr Mat Min Exi Min Mat Gar Mat Gar Fac Was Fac Gar Fac Gar Fac Was Fac Ext Cet Arc Hub Gar Total Allies 60 | . . . . . 1 . . . 3 20 5 . 2 . 3 . 3 14 5 . 4 . Largest Group 20 | . . . . . 1 1 1 . 3 20 3 1 2 . 2 . 1 6 6 4 5 . Highest-Rated Group 626 | . . . . . 10 10 10 . 78 531 62 10 52 . 36 . 26 282 626 376 451 . Highest-Rated Ally 156 | . . . . . 10 10 10 . 26 35 26 10 26 . 26 . 26 156 156 94 94 . Total Orders 46 | . . . . . . 4 3 . 5 . 13 4 9 . . . 8 . . . . . STAY 7 | . . . . . . . . . . . 2 1 3 . . . 1 . . . . . GOTO 19 | . . . . . . 2 2 . 3 . 6 1 2 . . . 3 . . . . . FOLLOW 20 | . . . . . . 2 1 . 2 . 5 2 4 . . . 4 . . . . . Ally Attacks 194 | . . . . . . . . . . . . . . . . . . 61 74 21 38 . Total Damage 7277 | . . . . . . . . . . . . . . . . . . 1975 3227 765 1310 . Kills 39 | . . . . . . . . . . . . . . . . . . 13 16 2 8 . Allies Corrupted 1 | . . . . . . . . . . . . . . . . . . . . . 1 . Allies Melted . | . . . . . . . . . . . . . . . . . . . . . . . Intel | -11 -10 -10 -10 -9 -8 -8 -8 -8 -7 -7 -7 -7 -7 -7 -6 -6 -6 -6 -6 -6 -6 -6 ------- Run | Scr Mat Min Exi Min Mat Gar Mat Gar Fac Was Fac Gar Fac Gar Fac Was Fac Ext Cet Arc Hub Gar Robot Analysis Total . | . . . . . . . . . . . . . . . . . . . . . . . Derelict Logs Recovered 1 | . . . . 1 . . . . . . . . . . . . . . . . . . Drone Launches . | . . . . . . . . . . . . . . . . . . . . . . . Drone Recoveries . | . . . . . . . . . . . . . . . . . . . . . . . Exploration | -11 -10 -10 -10 -9 -8 -8 -8 -8 -7 -7 -7 -7 -7 -7 -6 -6 -6 -6 -6 -6 -6 -6 ------------- Run | Scr Mat Min Exi Min Mat Gar Mat Gar Fac Was Fac Gar Fac Gar Fac Was Fac Ext Cet Arc Hub Gar Turns Passed 24124 | 74 1084 400 593 307 2003 209 2348 734 2877 869 1263 204 717 247 3708 25 2751 1998 573 631 306 203 Spaces Moved 25921 | 55 708 275 474 210 952 104 1116 343 2958 337 2176 329 1412 302 7379 89 4214 1266 285 187 631 119 Core 139 | 3 . . . . . . . . 54 . . . 23 . 1 . 6 2 10 . . 40 Treads 295 | . . . . . . . . . . . . . . . . . . . 253 42 . . Legs . | . . . . . . . . . . . . . . . . . . . . . . . Wheels 4881 | 52 708 275 474 210 952 104 1116 343 647 . . . . . . . . . . . . . Hover . | . . . . . . . . . . . . . . . . . . . . . . . Flight 20606 | . . . . . . . . . 2257 337 2176 329 1389 302 7378 89 4208 1264 22 145 631 79 Fastest Speed 23 | 50 90 110 90 120 120 160 130 150 30 30 30 29 29 26 26 23 29 23 27 27 25 25 Average Speed 55 | 89 111 117 119 120 154 160 159 150 60 73 33 30 35 31 30 23 36 30 152 60 25 50 Slowest Speed 600 | 100 120 120 120 120 240 160 170 150 150 100 100 32 150 97 200 23 600 150 160 160 27 100 Overloaded Moves 117 | . . . . . . . . . . . . . . 1 1 89 12 14 . . . . Propulsion Burnouts . | . . . . . . . . . . . . . . . . . . . . . . . Robots Hopped 117 | . . . . . . . . . 7 . 9 . . . 74 . 19 5 . . 3 . Cave-ins Triggered . | . . . . . . . . . . . . . . . . . . . . . . . Exploration Rate (%) 58 | 3 77 35 70 57 62 34 70 58 64 87 46 51 41 67 88 86 62 77 75 74 51 21 Regions Visited 22 Branch Regions 7 Pre-discovered Areas . | . . . . . . . . . . . . . . . . . . . . . . . Known Exits Taken 9 | . . . . . 1 . 1 . . . 1 . 1 . . . 1 1 1 1 1 . Unknown Exits Taken 5 | 1 1 1 1 1 . . . . . . . . . . . . . . . . . . Scrap Searched 3 | . . 2 . 1 . . . . . . . . . . . . . . . . . . Spaces Dug 720 | . 10 . . 1 37 . 54 9 119 . 62 32 31 . 172 . 70 75 . . 22 26 Terrain Destroyed 2059 | . 16 . . 1 152 55 61 88 162 . 62 47 31 39 172 . 136 483 58 4 396 96 Melee 583 | . 10 . . 1 25 . 54 . 117 . 62 2 31 . 172 . 70 17 . . 22 . Projectile 11 | . . . . . . . . . . . . . . . . . . . 7 4 . . AOE 1465 | . 6 . . . 127 55 7 88 45 . . 45 . 39 . . 66 466 51 . 374 96 Actions | -11 -10 -10 -10 -9 -8 -8 -8 -8 -7 -7 -7 -7 -7 -7 -6 -6 -6 -6 -6 -6 -6 -6 --------- Run | Scr Mat Min Exi Min Mat Gar Mat Gar Fac Was Fac Gar Fac Gar Fac Was Fac Ext Cet Arc Hub Gar Total 33869 | 70 873 329 505 239 1340 127 1537 510 3801 958 2616 407 1580 423 8436 94 5293 2733 389 680 712 217 Wait 5700 | . 27 20 . 7 217 4 251 22 509 618 329 44 115 31 812 . 920 1212 49 451 36 26 Move 25676 | 54 707 274 473 209 952 103 1116 342 2944 336 2159 327 1412 301 7236 88 4175 1255 284 186 624 119 Hop 111 | . . . . . . . . . 7 . 8 . . . 69 . 19 5 . . 3 . Pick Up 271 | 6 23 5 24 1 33 . 43 3 40 1 21 3 5 3 20 3 11 12 9 4 1 . Fast Attach 55 | 7 1 . 1 1 4 . 4 . 3 . 1 1 1 1 10 . 7 4 4 3 1 1 Attach 99 | . 2 1 . 2 9 . 5 1 12 . 3 5 1 5 6 . 21 14 4 3 . 5 Detach 65 | . . . . 1 2 . . . 5 . 3 4 2 3 8 . 23 8 3 2 . 1 Swap 218 | . 20 8 . 2 14 4 7 14 36 2 4 1 3 5 26 . 21 24 12 4 6 5 Drop 254 | . 14 8 7 1 14 . 23 2 74 1 23 2 6 2 28 3 9 15 5 12 1 4 Fire 360 | 3 61 10 . 7 57 14 6 48 23 . . 11 . 22 5 . 3 51 14 9 5 11 Melee 816 | . 18 3 . 8 38 2 82 . 148 . 65 9 35 1 198 . 84 59 5 6 35 20 Ram 1 | . . . . . . . . . . . . . . . . . . . . . . 1 Kick . | . . . . . . . . . . . . . . . . . . . . . . . Crush . | . . . . . . . . . . . . . . . . . . . . . . . Escape Stasis 149 | . . . . . . . . . . . . . . 37 14 . . 74 . . . 24 Rewire . | . . . . . . . . . . . . . . . . . . . . . . . Trap 94 | . . . . . . . . 78 . . . . . 12 4 . . . . . . . Miscellaneous . | . . . . . . . . . . . . . . . . . . . . . . . Route ------- -11/Scrapyard -10/Materials (discovered 4 exits: [*Mat x3] / [*Min]) -10/Mines -10/Exiles -9/Mines -8/Materials (discovered 3 exits: *Fac x2 / Gar) -8/Garrison -8/Materials (discovered 3 exits: *Fac x2 / Gar) -8/Garrison (discovered 2 exits: *Fac x2) -7/Factory (discovered 4 exits: *Fac x3 / *Low) -7/Waste -7/Factory (discovered 2 exits: *Fac / Gar) -7/Garrison -7/Factory (discovered 6 exits: *Fac x2 / [*Sto] / *Low x2 / Gar) -7/Garrison (discovered 2 exits: *Fac x2) -6/Factory (discovered 8 exits: *Fac x4 / *Low x2 / *Ext x2) -6/Waste -6/Factory (discovered 5 exits: Fac x2 / *Low x2 / *Ext) -6/Extension (discovered 2 exits: *Fac / *Cet) -6/Cetus (discovered 2 exits: *Fac / *Arc) -6/Archives (discovered 2 exits: *Fac / *Hub) -6/Hub_04(d) (discovered 3 exits: *Fac x2 / Gar) -6/Garrison History --------- Turn | Location | Event 16 | -11/Scrapyard | Discovered new exit (range 16) 75 | -11/Scrapyard | Entered Materials 315 | -10/Materials | Build established: Mutant 329 | -10/Materials | Discovered new exit (range 12) 383 | -10/Materials | Core integrity fell below 50% 708 | -10/Materials | Discovered new exit (range 11) 901 | -10/Materials | Discovered new exit (range 13) 1122 | -10/Materials | Build established: Hauler-Mutant 1148 | -10/Materials | Discovered new exit (range 10) 1159 | -10/Materials | Entered Mines 1177 | -10/Mines | Core integrity fell below 20% 1217 | -10/Mines | Met a Derelict bent on vengeance 1553 | -10/Mines | Deemed a non-threat by the Exiles lab entrance 1554 | -10/Mines | Discovered new exit (range 5) 1559 | -10/Mines | Entered Exiles 1589 | -10/Exiles | Met 8R-AWN 1609 | -10/Exiles | Met EX-HEX 1648 | -10/Exiles | Met EX-BIN 1664 | -10/Exiles | Met EX-DEC 1971 | -10/Exiles | Aligned with FarCom system 1972 | -10/Exiles | Given EX-Vault access code 2002 | -10/Exiles | Opened EX-Vault 2014 | -10/Exiles | Found Superbattery 2023 | -10/Exiles | Found Supersonic Drone Bay 2028 | -10/Exiles | Found AWS/Gauss 2056 | -10/Exiles | Warned to stay clear of 0b10 Research branches 2142 | -10/Exiles | Discovered new exit (range 11) 2152 | -10/Exiles | Stole three prototypes: Superbattery, Supersonic Drone Bay, AWS/Gauss 2152 | -10/Exiles | Entered Mines 2399 | -9/Mines | Learned Materials stockpile data 2454 | -9/Mines | Discovered new exit (range 5) 2459 | -9/Mines | Entered Materials 2459 | -8/Materials | Evolved 4 slots: Utility x4 3027 | -8/Materials | Discovered new exit (range 15) 3932 | -8/Materials | Garrison activated, responded to threat 3958 | -8/Materials | Discovered new exit (range 9) 4462 | -8/Materials | Identified exit to Garrison 4462 | -8/Materials | Entered Garrison 4462 | -8/Garrison | Accompanied by 1 ally 4529 | -8/Garrison | Triggered checkpoint 4586 | -8/Garrison | Triggered checkpoint 4611 | -8/Garrison | Discovered new exit (range 10) 4664 | -8/Garrison | Installed Relay Interface Framework 4671 | -8/Garrison | Entered Materials 4671 | -8/Materials | Accompanied by 1 ally 5105 | -8/Materials | Discovered new exit (range 16) 5156 | -8/Materials | Repaired Arm. Wheel 5785 | -8/Materials | Discovered new exit (range 16) 5875 | -8/Materials | Repaired Broken Arm. Wheel 7019 | -8/Materials | Identified exit to Garrison 7019 | -8/Materials | Entered Garrison 7032 | -8/Garrison | Triggered checkpoint 7468 | -8/Garrison | Triggered checkpoint 7529 | -8/Garrison | Destroyed 8 combat bots 7592 | -8/Garrison | Discovered new exit (range 5) 7676 | -8/Garrison | Triggered checkpoint 7720 | -8/Garrison | Discovered new exit (range 11) 7747 | -8/Garrison | Expanded RIF knowledge: Program Shield 7753 | -8/Garrison | Entered Factory 7753 | -7/Factory | Evolved 2 slots: Propulsion x1, Utility x1 7755 | -7/Factory | FarCom data flow suspended 8537 | -7/Factory | Discovered new exit (range 11) 9182 | -7/Factory | Discovered new exit (range 5) 9185 | -7/Factory | Identified exit to Factory 9631 | -7/Factory | Fabricated Mic. Fission Core? 9877 | -7/Factory | Discovered exit to Factory (range 6) 9959 | -7/Factory | Build established: Hacker-Sprinter 10055 | -7/Factory | Discovered exit to Factory (range 15) 10630 | -7/Factory | Sucked down chute 10630 | -7/Factory | Entered Waste 10631 | -7/Waste | Joined by Warlord forces that had cleared the area 10778 | -7/Waste | Discovered new exit (range 14) 10826 | -7/Waste | Identified exit to Factory 10952 | -7/Waste | Build established: Hacker-Mutant 11499 | -7/Waste | Entered Factory 11791 | -7/Factory | Build established: Hacker-Sprinter 12244 | -7/Factory | Fabricated Imp. Cesium-ion Thruster (x1) 12288 | -7/Factory | Fabricated Imp. Cesium-ion Thruster? 12313 | -7/Factory | Local fabrication network quarantined 12538 | -7/Factory | Discovered exit to Factory (range 15) 12618 | -7/Factory | Central database locked down 12762 | -7/Factory | Identified exit to Garrison 12762 | -7/Factory | Entered Garrison 12762 | -7/Garrison | Accompanied by 1 ally 12789 | -7/Garrison | Triggered checkpoint 12851 | -7/Garrison | Triggered checkpoint 12892 | -7/Garrison | Discovered new exit (range 15) 12903 | -7/Garrison | Identified exit to Factory 12905 | -7/Garrison | Expanded RIF knowledge: Structural Interface 12932 | -7/Garrison | Triggered checkpoint 12937 | -7/Garrison | Garrison Relay disabled 12966 | -7/Garrison | Entered Factory 12966 | -7/Factory | Accompanied by 1 ally 13082 | -7/Factory | Fabricated Adv. Hacking Suite (x1) 13137 | -7/Factory | Fabricated Adv. Hacking Suite? 13157 | -7/Factory | Local fabrication network quarantined 13205 | -7/Factory | Fabricated Adv. Hacking Suite? 13388 | -7/Factory | Discovered new exit (range 13) 13411 | -7/Factory | Identified exit to Lower Caves 13472 | -7/Factory | Discovered exit to Factory (range 13) 13535 | -7/Factory | Discovered new exit (range 9) 13585 | -7/Factory | Discovered exit to Factory (range 10) 13630 | -7/Factory | Discovered exit to Lower Caves (range 4) 13683 | -7/Factory | Identified exit to Garrison 13683 | -7/Factory | Entered Garrison 13725 | -7/Garrison | Triggered checkpoint 13725 | -7/Garrison | Triggered checkpoint 13781 | -7/Garrison | Destroyed 13 combat bots 13816 | -7/Garrison | Triggered checkpoint 13852 | -7/Garrison | Discovered exit to Factory (range 15) 13880 | -7/Garrison | Triggered checkpoint 13890 | -7/Garrison | Discovered exit to Factory (range 10) 13895 | -7/Garrison | Expanded RIF knowledge: Autooverride 13908 | -7/Garrison | Triggered checkpoint 13910 | -7/Garrison | Garrison Relay disabled 13930 | -7/Garrison | Entered Factory 13930 | -6/Factory | Evolved 2 slots: Utility x2 14000 | -6/Factory | Spotted B-75 Beast 14052 | -6/Factory | Discovered new exit (range 14) 14188 | -6/Factory | Discovered new exit (range 13) 14204 | -6/Factory | Identified exit to Factory 14300 | -6/Factory | Fabricated Imp. Cesium-ion Thruster? 14343 | -6/Factory | Fabricated Exp. Sensor Array? 14654 | -6/Factory | Build established: Machinist-Sprinter 14711 | -6/Factory | Discovered exit to Factory (range 13) 14736 | -6/Factory | Identified exit to Lower Caves 14736 | -6/Factory | Identified exit to Extension 14845 | -6/Factory | Fabricated Adv. Hacking Suite (x1) 15150 | -6/Factory | Build established: Hacker-Sprinter 15190 | -6/Factory | Discovered exit to Factory (range 15) 15660 | -6/Factory | Discovered exit to Factory (range 7) 15673 | -6/Factory | Found Exp. Signal Interpreter 16717 | -6/Factory | Fabricated Field Propulsion Array? 17112 | -6/Factory | Fabricated Exp. Cesium-ion Thruster (x1) 17419 | -6/Factory | Central database locked down 17638 | -6/Factory | Sucked down chute 17638 | -6/Factory | Entered Waste 17650 | -6/Waste | Spotted C-40 Crusher 17651 | -6/Waste | Spotted C-40 Crusher 17653 | -6/Waste | EMP discharged 17653 | -6/Waste | Spotted C-40 Crusher 17653 | -6/Waste | Spotted C-40 Crusher 17658 | -6/Waste | Spotted C-40 Crusher 17660 | -6/Waste | Discovered new exit (range 16) 17660 | -6/Waste | Spotted C-40 Crusher 17663 | -6/Waste | Identified exit to Factory 17663 | -6/Waste | Entered Factory 18016 | -6/Factory | Spotted B-75 Beast 18098 | -6/Factory | System corruption reached 10% 18308 | -6/Factory | Repaired Broken Cld. Cesium-ion Thruster 18382 | -6/Factory | Build established: Hacker-Mutant 18480 | -6/Factory | Fabricated O-24 Administrator (x1) 18818 | -6/Factory | Fabricated Mni. Smartbomb Launcher? 18948 | -6/Factory | Local fabrication network quarantined 19018 | -6/Factory | Repaired Adv. System Shield 19214 | -6/Factory | Discovered exit to Lower Caves (range 13) 19309 | -6/Factory | Build established: Wizard-Mutant 19406 | -6/Factory | Discovered exit to Factory (range 18) 19544 | -6/Factory | Repaired Exp. Sensor Array 19617 | -6/Factory | Repaired Adv. Remote Datajack? 19954 | -6/Factory | Discovered exit to Lower Caves (range 12) 20117 | -6/Factory | Discovered exit to Extension (range 6) 20281 | -6/Factory | Discovered exit to Factory (range 14) 20302 | -6/Factory | Build established: Hacker-Sprinter 20414 | -6/Factory | Entered Extension 20622 | -6/Extension | Build established: Hacker-Mutant 21464 | -6/Extension | Disrupted transfer network 21539 | -6/Extension | Rescued a captive Derelict 21540 | -6/Extension | Rescued a captive Derelict 21968 | -6/Extension | Lost 3 parts (1p1u1w) 22060 | -6/Extension | Spotted B-75 Beast 22061 | -6/Extension | Spotted B-75 Beast 22074 | -6/Extension | Rescued A7 22331 | -6/Extension | Discovered exit to Factory (range 10) 22331 | -6/Extension | Discovered new exit (range 6) 22348 | -6/Extension | Identified exit to Cetus 22362 | -6/Extension | Build established: Hacker-Sprinter 22412 | -6/Extension | Entered Cetus 22412 | -6/Cetus | Accompanied by 6 allies 22417 | -6/Cetus | Acquired a Cetus Manufacturing Module code from A7 22429 | -6/Cetus | Spotted Cetus Guard 22429 | -6/Cetus | Spotted Cetus Guard 22434 | -6/Cetus | Spotted Cetus Guard 22434 | -6/Cetus | Spotted Cetus Guard 22440 | -6/Cetus | Allies destroyed Cetus Guard 22450 | -6/Cetus | Core integrity fell below 50% 22459 | -6/Cetus | Allies destroyed Cetus Guard 22461 | -6/Cetus | Allies destroyed Cetus Guard 22469 | -6/Cetus | Allies destroyed Cetus Guard 22592 | -6/Cetus | Started Cetus Manufacturing Module 22617 | -6/Cetus | Manufactured an Enhanced Grunt 22642 | -6/Cetus | Manufactured an Enhanced Grunt 22667 | -6/Cetus | Manufactured an Enhanced Grunt 22692 | -6/Cetus | Manufactured an Enhanced Grunt 22700 | -6/Cetus | Build established: Hacker-Mutant 22717 | -6/Cetus | Manufactured an Enhanced Grunt 22733 | -6/Cetus | Discovered new exit (range 16) 22790 | -6/Cetus | Spotted Cetus Guard 22790 | -6/Cetus | Spotted Cetus Guard 22794 | -6/Cetus | Spotted Cetus Guard 22795 | -6/Cetus | Spotted Cetus Guard 22798 | -6/Cetus | Allies destroyed Cetus Guard 22804 | -6/Cetus | Allies destroyed Cetus Guard 22806 | -6/Cetus | Allies destroyed Cetus Guard 22808 | -6/Cetus | Allies destroyed Cetus Guard 22817 | -6/Cetus | Discovered exit to Factory (range 15) 22827 | -6/Cetus | Met Revision 17 22922 | -6/Cetus | Escorted A7 to Cetus Mainframe 22954 | -6/Cetus | Destroyed A7 22959 | -6/Cetus | Extracted ID and sensor layout for unrecognized location from A7's data core 22983 | -6/Cetus | Identified exit to Archives 22985 | -6/Cetus | Entered Archives 22985 | -6/Archives | Accompanied by 4 allies 23417 | -6/Archives | Discovered new exit (range 15) 23517 | -6/Archives | Discovered exit to Factory (range 15) 23533 | -6/Archives | Identified exit to Hub_04(d) 23616 | -6/Archives | Entered Hub_04(d) 23616 | -6/Hub_04(d) | Accompanied by 4 allies 23695 | -6/Hub_04(d) | Spotted B-75 Beast 23704 | -6/Hub_04(d) | Identified exit to Garrison 23705 | -6/Hub_04(d) | Destroyed B-75 Beast 23714 | -6/Hub_04(d) | Garrison activated, responded to threat 23724 | -6/Hub_04(d) | Discovered exit to Factory (range 17) 23813 | -6/Hub_04(d) | Build established: Hacker-Sprinter 23821 | -6/Hub_04(d) | Network Hub disabled 23839 | -6/Hub_04(d) | Discovered exit to Factory (range 14) 23899 | -6/Hub_04(d) | Network Hub disabled 23922 | -6/Hub_04(d) | Entered Garrison 23924 | -6/Garrison | Expanded RIF knowledge: Coupler Efficiency 23961 | -6/Garrison | Triggered checkpoint 23961 | -6/Garrison | Triggered checkpoint 24003 | -6/Garrison | Lost 3 parts (2n1u) 24014 | -6/Garrison | Destroyed 8 combat bots 24075 | -6/Garrison | Core integrity fell below 20% 24125 | -6/Garrison | Destroyed by S-27 Virus with Autogun Last Messages --------------- 24043_ Field strength at 10. 24044_ Field strength at 4. 24045_ Stasis field depleted. 24046_ The unstable cave ceiling collapses. 24050_ Acquired 11 matter. 24053_ Acquired 14 matter. 24058_ Mni. Smartbomb Launcher destroyed. 24063_ The unstable cave ceiling collapses. 24073_ S-27 Virus destroyed. 24098_ Imp. Utility Shielding destroyed. 24101_ Destroyed VTOL Module. 24108_ S-27 Virus destroyed. 24112_ Acquired 28 matter. 24113_ Acquired 29 matter. 24114_ System corrupted: Phasing Sabre targeting data glitched. 24120_ Phasing Sabre destroyed. 24122_ Slammed into S-27 Virus. 24123_ Dropped Quantum Reactor. 24123_ Dropped Med. Storage Unit. 24124_ Dropped Centrium Medium Armor Plating. Map ----- +----------------------------------------------------+ | ?????????????????????????????????????????????????? | | ?????????????????????????????????????????????????? | | ?????????????????????????????????????????????????? | | ?????????????????????????????????????????????????? | | ?????????????????????????????????????????????????? | | ?????????????????????????????????????????????????? | | ?????????????????????????????????????????????????? | | ??????????????????????????###########????????????? | | ??????????????????????????# #""""#????????????? | | ??????????????????????????# "#????????????? | | ??????????????????????????# #""""#????????????? | | ??????????????????????????# ########????????????? | | ??????????????????######### #???????????????????? | | ??????????????????# + #???????????????????? | | ?????????????####?# ####### #???????????????????? | | ???????????### #?# #?????# #???????????????????? | | ????????#### ### #?????# #???????????????????? | | ???????## # #?????# #???????????????????? | | ???????# # ##"####### #???????????????????? | | ???????# # # ###?????????????????? | | ???????# # [ + #?????????????????? | | ??????## # ## #+##### #### #?????????????????? | | ??????# # * # ## #???# #??# #?????????????????? | | ??????# ## # # #???# #??# #?????????????????? | | ??????# ## ## # #####s#??# #?????????????????? | | ??????# =%*g s*s@#??#+#?????????????????? | | ??????##### ## #####s#??????????????????????? | | ??????????# ## #???# ###"""##???????????????? | | ??????????# ### #???# ????????? | | ???????? *% # ## #???##########???????????????? | | ?????? % #????????????????????????????? | | ????? ####????????????????????????????? | | ????## ## #???????????????????????????????? | | ????# # ###???????????????????????????????? | | ??? ?????????????????????????????????? | | ?? % ?????????????????????????????????? | | ? ????????????????????????????????? | | ? % ????????????????????????????????? | | ? ## ###???????????????????????????????? | | ??? # ????#^ #?????????????????????????????????? | | ????? ?????? ?????????????????????????????????? | | ???????????? ?????????????????????????????????? | | ???????????? ??????????????????????????????????? | | ?????????????????????????????????????????????????? | | ?????????????????????????????????????????????????? | | ?????????????????????????????????????????????????? | | ?????????????????????????????????????????????????? | | ?????????????????????????????????????????????????? | | ?????????????????????????????????????????????????? | | ?????????????????????????????????????????????????? | +----------------------------------------------------+ Best States ------------- Heat Dissipation 37 Energy Generation 25 Energy Capacity 2170 Matter Stores 300 Matter Capacity 300 Sight Range 16 Robot Scan Range 30 Terrain Scan Density 10 Additional Mass Support 25 Armor Coverage 450 Resistance: KI 20 Resistance: EM 15 Utility Shielding 66 Evasion (%) 65 Recoil Reduction 2 Offensive Hacking 42 Defensive Hacking 26 Item Schematics ----------------- Arm. Wheel | -8/Materials | Scanalyzed Adv. EMP Blaster | -8/Materials | Scanalyzed Med. Storage Unit | -8/Materials | Hacked Lrg. Storage Unit | -8/Materials | Hacked Hcp. Storage Unit | -8/Materials | Scanalyzed Humpback | -8/Materials | Scanalyzed Mic. Fission Core | -7/Factory | Hacked Imp. Cesium-ion Thruster | -7/Factory | Hacked Imp. Hacking Suite | -7/Factory | Hacked Adv. Hacking Suite | -7/Factory | Scanalyzed Weapon Cycler | -7/Factory | Hacked Phase Shifter | -7/Factory | Hacked Imp. System Shield | -7/Factory | Hacked Hyp. Coil Gun | -7/Factory | Hacked Exp. Sensor Array | -7/Factory | Hacked Imp. Melee Analysis Suite | -7/Factory | Hacked Hvy. Machine Gun | -6/Factory | Hacked Imp. Proton Missile Launcher | -6/Factory | Hacked Imp. Transmission Jammer | -6/Factory | Hacked Cld. Cesium-ion Thruster | -6/Factory | Scanalyzed Field Propulsion Array | -6/Factory | Hacked Exp. Cesium-ion Thruster | -6/Factory | Hacked Adv. Focal Shield | -6/Factory | Hacked Mni. Smartbomb Launcher | -6/Factory | Hacked Gravity Neutralizing Apparatus | -6/Factory | Hacked Fusion Compressor | -6/Factory | Hacked Robot Schematics ------------------ O-24 Administrator | -6/Factory | Hacked Fabricated ------------ Mic. Fission Core | x2 | -7/Factory Imp. Cesium-ion Thruster | x1 | -7/Factory Imp. Cesium-ion Thruster | x1 | -7/Factory Adv. Hacking Suite | x1 | -7/Factory Adv. Hacking Suite | x1 | -7/Factory Adv. Hacking Suite | x1 | -7/Factory Imp. Cesium-ion Thruster | x1 | -6/Factory Exp. Sensor Array | x1 | -6/Factory Adv. Hacking Suite | x1 | -6/Factory Field Propulsion Array | x2 | -6/Factory Exp. Cesium-ion Thruster | x1 | -6/Factory O-24 Administrator | x1 | -6/Factory Mni. Smartbomb Launcher | x1 | -6/Factory Alien Tech Used ----------------- None Achievements -------------- None Challenges ------------ None Game ------ Seed LightCoilLance Manual? 0 Play Time 06:20:39 Cumulative 903.5 hours Start 2020.02.15 @ 18:24:08 End 2020.02.16 @ 04:33:05 Sessions 3 Manual Loads 0 Difficulty Rogue Special Mode None Game No. 347 Rogue 347 Adventurer 0 Explorer 0 Win Type - Total 21 Types 11/1/7/0/0/0/2 Lore% 95 Gallery% 96 Achievement% 81 Wizard Run 0 Options --------- ASCII 0 Keyboard 0 Movement Vi Keybinds 0 Fullscreen 0 Font 12/Crisp Map View 76x50 Tactical HUD 1 Map Filters NONE Filters NONE Steam 1 RUN: ad0eb88a-da2b-420e-94b9-0f0e790dd1ba